bitfinex/quotes_SOLUSD_20250123
["timestamp","ask_amount","ask_price","bid_price","bid_amount"]
[1737643319956,31.8852863,251.42,251.24,1.0]
[1737643319957,31.8852863,251.48,251.36,31.8852863]
[1737643320136,1.6586,251.63,251.46,31.8852863]
[1737643320461,30.0,251.66,251.43,1.0]
[1737643320650,20.0,251.57,251.33,1.0]
[1737643320847,1.03,251.61,251.42,23.776884]
[1737643321058,0.03,251.61,251.49,20.0]
[1737643321278,0.03,251.61,251.53,20.0]
[1737643321561,0.03,251.61,251.6,31.8852863]
[1737643321944,2.0,251.81,251.6,31.8852863]
[1737643322136,1.0,251.76,251.66,31.8852863]
[1737643322330,1.0,251.72,251.69,31.8852863]
[1737643322560,0.03,251.87,251.71,31.8852863]
[1737643322561,1.0,251.82,251.71,31.8852863]
[1737643322764,1.0,251.8,251.58,20.0]
[1737643323060,42.98,252.03,251.69,1.0]
[1737643323265,30.0,251.97,251.69,1.0]
[1737643323458,30.0,251.9,251.68,22.84193825]
[1737643323664,31.8852863,251.82,251.7,31.8852863]
[1737643323844,31.8852863,251.94,251.68,22.84193825]
[1737643323845,31.8852863,251.8,251.68,31.8852863]
[1737643324159,31.8852863,251.86,251.74,31.8852863]
[1737643324350,31.8852863,251.88,251.76,31.8852863]
[1737643324552,31.8852863,251.88,251.78,31.8852863]
[1737643324869,31.8852863,251.88,251.75,31.8852863]
[1737643325164,31.8852863,251.84,251.73,31.8852863]
[1737643325463,31.8852863,251.78,251.67,22.84193825]
[1737643325754,31.8852863,251.76,251.67,22.84193825]
[1737643325959,31.8852863,251.74,251.67,22.84193825]
[1737643326146,31.8852863,251.74,251.64,3.9739]
[1737643326342,20.0,251.69,251.59,31.8852863]
[1737643326662,20.0,251.69,251.56,22.84193825]
[1737643326663,31.8852863,251.68,251.56,58.70232455]
[1737643326833,31.8852863,251.76,251.66,31.8852863]
[1737643327033,3.9693,251.93,251.66,1.0]
[1737643327261,31.8852863,251.8,251.7,31.8852863]
[1737643327466,31.8852863,251.78,251.68,31.8852863]
[1737643327637,31.8852863,251.74,251.63,31.8852863]
[1737643328262,31.8852863,251.78,251.65,31.8852863]
[1737643328459,31.8852863,251.74,251.63,31.8852863]
[1737643328635,31.8852863,251.72,251.61,35.8596863]
[1737643328839,31.8852863,251.69,251.57,35.8601863]
[1737643329044,31.8852863,251.63,251.51,31.8852863]
[1737643329259,23.776884,251.63,251.49,31.8852863]
[1737643329463,31.8852863,251.59,251.47,31.8852863]
[1737643329660,31.8852863,251.64,251.53,31.8852863]
[1737643329844,31.8852863,251.69,251.56,31.8852863]
[1737643330040,31.8852863,251.69,251.58,31.8852863]
[1737643330261,31.8852863,251.67,251.55,31.8852863]
[1737643330457,31.8852863,251.6,251.49,31.8852863]
[1737643330841,20.0,251.55,251.32,3.9789]
[1737643331149,30.0,251.55,251.21,2.0]
[1737643331466,20.0,251.48,251.26,1.0]
[1737643331682,6.2227,251.58,251.27,1.0]
[1737643331972,23.776884,251.46,251.2,3.9808]
[1737643332158,31.8852863,251.38,251.28,31.8852863]
[1737643332344,1.0,251.5,251.19,49.763]
[1737643332345,31.8852863,251.3,251.19,31.8852863]
[1737643332536,31.8852863,251.32,251.21,31.8852863]
[1737643332744,31.8852863,251.42,251.23,31.8852863]
[1737643332745,6.05649139,251.3,251.23,31.8852863]
[1737643332949,6.05649139,251.3,251.18,10.016]
[1737643333154,6.05649139,251.3,251.22,31.8852863]
[1737643333362,6.05649139,251.26,251.22,31.8852863]
[1737643333644,6.05649139,251.26,251.25,31.8852863]
[1737643333849,31.8852863,251.39,251.25,31.8852863]
[1737643334082,20.0,251.3,251.19,35.8662863]
[1737643334285,31.8852863,251.29,251.17,31.8852863]
[1737643334495,31.8852863,251.27,251.15,31.93427212]
[1737643334662,31.8852863,251.23,251.15,0.04898582]
[1737643334846,20.0,251.16,251.15,0.04898582]
[1737643335442,12.2561253,251.18,251.15,0.04898582]
[1737643335758,20.0,251.16,251.15,0.04898582]
[1737643336075,83.7705726,251.16,251.15,0.04898582]
[1737643336298,107.5474566,251.16,251.15,0.04898582]
[1737643336587,83.7705726,251.16,251.05,0.063]
[1737643336750,31.8852863,251.08,251.05,0.063]
[1737643336950,31.8852863,251.06,251.05,0.063]
[1737643337165,31.8852863,251.08,251.05,0.063]
[1737643337367,31.8852863,251.12,251.05,0.063]
[1737643337565,31.8852863,251.14,251.05,0.063]
[1737643337870,31.8852863,251.12,251.05,0.063]
[1737643338055,31.8852863,251.08,251.05,0.063]
[1737643338256,51.8852863,251.06,251.05,0.063]
[1737643338467,31.8852863,251.08,251.05,0.063]
[1737643339174,31.8852863,251.06,251.05,0.063]
[1737643339479,31.8852863,251.06,250.69,19.06812582]
[1737643339480,31.8852863,251.06,250.85,31.8852863]
[1737643339776,43.776884,251.03,250.78,9.9687]
[1737643340075,31.8852863,250.9,250.82,3.9867]
[1737643340281,31.8852863,250.94,250.87,3.986]
[1737643340479,31.8852863,250.94,250.82,31.8852863]
[1737643340779,31.8852863,250.92,250.86,3.9861]
[1737643340976,31.8852863,250.95,250.9,3.9856]
[1737643341151,31.8852863,250.93,250.82,31.8852863]
[1737643341354,31.8852863,250.91,250.8,31.8852863]
[1737643341572,31.8852863,250.91,250.78,31.8852863]
[1737643341763,31.8852863,250.91,250.77,0.063]
[1737643341764,31.8852863,250.9,250.77,0.063]
[1737643342153,31.8852863,250.9,250.77,4.0505]
[1737643342355,31.8852863,250.9,250.77,0.063]
[1737643342675,20.0,250.86,250.77,0.063]
[1737643342875,20.0,250.85,250.77,0.063]
[1737643343074,31.8852863,250.78,250.77,0.063]
[1737643343951,32.8852863,250.91,250.77,0.063]
[1737643343952,31.8852863,250.82,250.77,0.063]
[1737643344155,31.8852863,250.87,250.77,4.0507]
[1737643344367,31.8852863,250.95,250.83,31.8852863]
[1737643344550,3.9824,251.1,250.79,1.0]
[1737643344772,1.0,251.05,250.77,4.0507]
[1737643345085,1.0,251.01,250.77,4.0507]
[1737643345255,20.0,250.97,250.77,4.0507]
[1737643345761,31.8852863,250.9,250.79,31.8852863]
[1737643345965,31.8852863,250.94,250.81,31.8852863]
[1737643346161,31.8852863,250.92,250.81,31.8852863]
[1737643346380,31.8852863,250.9,250.79,31.8852863]
[1737643346589,10.9582,251.05,250.77,14.0199]
[1737643346590,31.8852863,250.96,250.85,31.8852863]
[1737643346875,31.8852863,250.98,250.87,31.8852863]
[1737643347185,31.8852863,250.94,250.83,31.8852863]
[1737643347480,31.8852863,250.92,250.81,31.8852863]
[1737643347692,31.8852863,250.96,250.83,31.8852863]
[1737643347988,31.8852863,250.96,250.85,31.8852863]
[1737643348165,31.8852863,250.92,250.81,31.8852863]
[1737643348364,31.8852863,250.92,250.78,13.9563]
[1737643348365,31.8852863,250.9,250.79,31.8852863]
[1737643348563,31.8852863,250.92,250.81,31.8852863]
[1737643348997,31.8852863,250.94,250.83,31.8852863]
[1737643349291,31.8852863,250.97,250.85,31.8852863]
[1737643350088,20.0,250.88,250.79,31.8852863]
[1737643350294,31.8852863,250.87,250.77,4.0507]
[1737643350468,31.8852863,250.85,250.77,0.063]
[1737643350785,31.8852863,250.87,250.77,0.063]
[1737643351087,31.8852863,250.87,250.77,4.0506]
[1737643351390,31.8852863,250.89,250.77,35.9358863]
[1737643351578,31.8852863,250.86,250.77,0.063]
[1737643351974,31.8852863,250.79,250.77,0.063]
[1737643352466,19.76914269,250.96,250.77,0.063]
[1737643352467,31.8852863,250.85,250.77,0.063]
[1737643352667,31.8852863,250.83,250.77,0.063]
[1737643353067,31.8852863,250.85,250.77,4.0506]
[1737643353291,31.8852863,250.85,250.77,0.063]
[1737643353491,31.8852863,250.85,250.77,4.0506]
[1737643353674,31.8852863,250.87,250.77,4.0506]
[1737643353875,31.8852863,250.85,250.77,4.0506]
[1737643354070,31.8852863,250.79,250.77,0.063]
[1737643354796,31.8852863,250.9,250.77,0.063]
[1737643354797,31.8852863,250.81,250.77,0.063]
[1737643354977,31.8852863,250.83,250.77,0.063]
[1737643355183,31.8852863,250.85,250.77,4.0506]
[1737643355384,31.8852863,250.95,250.84,31.8852863]
[1737643355595,3.9824,251.1,250.8,24.776884]
[1737643355797,31.8852863,250.99,250.87,31.8852863]
[1737643355993,31.8852863,251.05,250.93,31.8852863]
[1737643356377,31.8852863,251.03,250.93,31.8852863]
[1737643356579,20.0,250.94,250.85,31.8852863]
[1737643356903,31.8852863,250.93,250.82,31.8852863]
[1737643357103,19.30144048,251.12,250.9,31.8852863]
[1737643357104,31.8852863,251.01,250.9,31.8852863]
[1737643357294,3.9821,251.12,250.88,31.8852863]
[1737643357505,31.8852863,250.99,250.88,31.8852863]
[1737643358000,20.0,250.94,250.86,31.8852863]
[1737643358184,31.8852863,250.95,250.83,31.8852863]
[1737643358381,31.8852863,250.92,250.8,31.8852863]
[1737643358582,31.8852863,250.96,250.84,31.8852863]
[1737643358781,31.8852863,251.0,250.88,31.8852863]
[1737643359081,31.8852863,250.98,250.87,3.9861]
[1737643359300,31.8852863,250.9,250.8,31.8852863]
[1737643359488,20.0,250.94,250.77,0.063]
[1737643359678,31.8852863,250.83,250.77,0.063]
[1737643359880,31.8852863,250.79,250.77,0.063]
[1737643360203,31.8852863,250.9,250.77,0.063]
[1737643360204,31.8852863,250.83,250.77,0.063]
[1737643360376,31.8852863,250.81,250.77,0.063]
[1737643360579,31.8852863,250.79,250.77,0.063]
[1737643361392,35.8726863,250.79,250.77,0.063]
[1737643361597,31.8852863,250.78,250.77,0.063]
[1737643361782,35.8726863,250.79,250.77,0.063]
[1737643361993,31.8852863,250.79,250.77,0.063]
[1737643362178,35.8726863,250.79,250.77,0.063]
[1737643362384,85.6621703,250.78,250.77,0.063]
[1737643362586,55.6621703,250.78,250.77,0.063]
[1737643362786,55.6621703,250.78,250.57,0.063]
[1737643362787,23.776884,250.73,250.57,0.063]
[1737643363016,1.0,250.74,250.57,0.063]
[1737643363017,31.8852863,250.63,250.57,0.063]
[1737643363186,31.8852863,250.58,250.57,0.063]
[1737643363513,31.8852863,250.61,250.57,0.063]
[1737643364013,31.8852863,250.63,250.57,0.063]
[1737643364185,31.8852863,250.78,250.57,0.063]
[1737643364186,31.8852863,250.67,250.57,35.9390863]
[1737643364382,31.8852863,250.69,250.57,35.9390863]
[1737643364591,31.8852863,250.74,250.63,31.8852863]
[1737643364794,31.8852863,250.75,250.63,31.8852863]
[1737643365017,31.8852863,250.73,250.62,31.8852863]
[1737643365223,31.8852863,250.77,250.66,31.8852863]
[1737643365393,31.8852863,250.77,250.61,37.742484]
[1737643365394,31.8852863,250.9,250.65,1.0]
[1737643365600,30.0,250.93,250.66,1.0]
[1737643365803,30.0,250.93,250.63,1.0]
[1737643366108,20.0,250.89,250.63,23.776884]
[1737643366284,20.0,250.89,250.65,23.776884]
[1737643366488,31.8852863,250.78,250.68,31.8852863]
[1737643366721,61.8852863,250.9,250.61,13.9656]
[1737643366722,31.8852863,250.82,250.71,31.8852863]
[1737643366899,31.8852863,250.88,250.76,31.8852863]
[1737643367230,31.8852863,250.88,250.77,3.9877]
[1737643367423,30.0,250.95,250.74,31.8852863]
[1737643367586,31.8852863,250.84,250.72,31.8852863]
[1737643368002,31.8852863,250.86,250.74,31.8852863]
[1737643368196,31.8852863,250.92,250.8,31.8852863]
[1737643368400,31.8852863,250.94,250.82,31.8852863]
[1737643368795,31.8852863,250.92,250.82,31.8852863]
[1737643369010,31.8852863,250.87,250.74,31.8852863]
[1737643369192,31.8852863,250.82,250.7,31.8852863]
[1737643369394,31.8852863,250.84,250.72,31.8852863]
[1737643370318,20.0,250.7,250.58,35.8759863]
[1737643370526,31.8852863,250.71,250.61,31.8852863]
[1737643370828,31.8852863,250.73,250.61,31.8852863]
[1737643371019,31.8852863,250.75,250.57,14.031]
[1737643371215,31.8852863,250.75,250.65,31.8852863]
[1737643371401,31.8852863,250.75,250.63,35.8750863]
[1737643371728,31.8852863,250.71,250.61,3.9902]
[1737643371901,85.7552863,250.9,250.61,3.9902]
[1737643372093,85.7552863,250.9,250.61,4.9902]
[1737643372094,20.0,250.87,250.61,4.9902]
[1737643372304,20.0,250.86,250.61,4.9902]
[1737643372507,20.0,250.86,250.65,0.063]
[1737643372806,20.0,250.87,250.65,0.063]
[1737643373010,31.8852863,250.79,250.67,31.8852863]
[1737643373197,31.8852863,250.81,250.69,31.8852863]
[1737643373401,31.9152863,250.89,250.77,31.8852863]
[1737643373611,0.03,250.89,250.79,31.8852863]
[1737643373802,0.03,250.89,250.81,31.8852863]
[1737643374998,0.03,250.89,250.87,31.8852863]
[1737643375506,0.03,251.0,250.88,23.776884]
[1737643375699,0.03,251.0,250.94,31.8852863]
[1737643376036,0.03,251.0,250.92,31.8852863]
[1737643376395,0.03,251.0,250.94,31.8852863]
[1737643376599,0.03,251.0,250.96,31.8852863]
[1737643376897,0.03,251.0,250.98,31.8852863]
[1737643377298,0.03,251.16,250.99,23.776884]
[1737643377622,0.03,251.16,250.97,13.9458]
[1737643377623,0.03,251.16,251.06,31.8852863]
[1737643377824,31.8852863,251.11,251.0,31.8852863]
[1737643378023,31.8852863,251.09,250.98,31.8852863]
[1737643378417,31.8852863,251.09,250.97,3.9845]
[1737643378418,31.8852863,251.11,251.0,31.8852863]
[1737643378620,0.03,251.16,251.08,31.8852863]
[1737643378817,0.03,251.16,251.1,31.8852863]
[1737643379211,0.03,251.16,251.08,31.8852863]
[1737643380437,51.8852863,251.1,250.99,31.8852863]
[1737643380617,31.8852863,251.12,251.01,31.8852863]
[1737643380820,31.8852863,251.12,251.01,35.8690863]
[1737643381517,31.8852863,251.07,250.96,35.8698863]
[1737643381714,31.8852863,251.07,250.94,35.8701863]
[1737643382029,31.8852863,251.01,250.9,31.8852863]
[1737643382238,31.8852863,250.95,250.84,31.8852863]
[1737643382421,31.8852863,250.95,250.84,35.8716863]
[1737643382615,31.8852863,251.01,250.9,31.8852863]
[1737643382809,61.9152863,251.16,250.92,31.8852863]
[1737643383032,31.8852863,251.11,251.0,31.8852863]
[1737643383234,0.03,251.16,251.03,31.8852863]
[1737643383531,31.8852863,251.08,250.97,31.8852863]
[1737643383733,31.8852863,251.06,250.95,31.8852863]
[1737643384049,31.8852863,251.06,250.91,3.9854]
[1737643384050,31.8852863,251.05,250.93,31.8852863]
[1737643384337,31.8852863,250.99,250.89,3.9857]
[1737643384640,31.8852863,250.96,250.86,31.8852863]
[1737643384940,31.8852863,250.9,250.8,31.8852863]
[1737643385126,31.8852863,250.86,250.75,31.8852863]
[1737643385635,31.8852863,250.81,250.7,35.8739863]
[1737643385845,31.8852863,250.75,250.64,35.41162346]
[1737643386012,31.8852863,250.75,250.65,4.0524]
[1737643386835,31.8852863,250.72,250.65,0.063]
[1737643387028,31.8852863,250.83,250.71,31.8852863]
[1737643387223,31.8852863,250.81,250.71,31.8852863]
[1737643387428,31.8852863,250.83,250.71,31.8852863]
[1737643387636,30.0,250.96,250.65,14.0265]
[1737643387637,30.0,250.99,250.68,23.776884]
[1737643387943,4.006,251.17,250.68,23.776884]
[1737643387944,37.91915212,250.9,250.79,31.8852863]
[1737643388117,6.03386582,250.9,250.81,31.8852863]
[1737643388517,31.8852863,250.88,250.77,31.8852863]
[1737643388926,31.8852863,250.86,250.75,31.8852863]
[1737643389110,31.8852863,250.84,250.73,31.8852863]
[1737643389316,31.8852863,250.82,250.71,31.8852863]
[1737643389524,31.8852863,250.84,250.73,31.8852863]
[1737643389832,31.8852863,250.9,250.79,31.8852863]
[1737643390131,31.8852863,250.94,250.83,31.8852863]
[1737643390445,6.03386582,251.04,250.79,2.0]
[1737643390616,31.8852863,251.02,250.91,31.8852863]
[1737643390819,6.03386582,251.04,250.94,31.8852863]
[1737643391022,6.03386582,251.04,250.96,31.8852863]
[1737643391344,31.8852863,251.01,250.9,31.8852863]
[1737643391710,31.8852863,250.94,250.82,31.8852863]
[1737643392238,31.8852863,250.96,250.86,31.8852863]
[1737643392440,31.8852863,250.98,250.88,31.8852863]
[1737643392649,31.8852863,251.0,250.88,31.8852863]
[1737643393143,31.8852863,251.0,250.89,3.9858]
[1737643393733,31.8852863,250.98,250.89,3.9858]
[1737643393926,31.8852863,250.96,250.87,3.986]
[1737643394124,31.8852863,251.0,250.88,31.8852863]
[1737643394643,31.8852863,250.98,250.88,31.8852863]
[1737643394846,1.0,251.1,250.87,3.986]
[1737643394847,31.8852863,251.0,250.9,31.8852863]
[1737643395050,31.8852863,250.96,250.86,31.8852863]
[1737643395221,31.8852863,250.96,250.86,35.8714863]
[1737643395847,31.8852863,250.94,250.84,31.8852863]
[1737643396030,31.8852863,250.98,250.88,31.8852863]
[1737643397039,31.8852863,250.96,250.89,3.9858]
[1737643397629,31.8852863,250.9,250.78,31.8852863]
[1737643397955,31.8852863,250.85,250.74,31.8852863]
[1737643398726,31.8852863,250.83,250.74,31.8852863]
[1737643398927,31.8852863,250.87,250.76,31.8852863]
[1737643399249,31.8852863,250.87,250.63,1.0]
[1737643399250,31.8852863,250.78,250.67,35.8745863]
[1737643399451,31.8852863,250.76,250.53,2.6247]
[1737643399632,31.8852863,250.74,250.65,4.0525]
[1737643399834,31.8852863,250.9,250.65,14.0265]
[1737643400149,1.6382,250.99,250.67,23.776884]
[1737643400549,20.0,250.9,250.65,14.0265]
[1737643400850,31.8852863,250.84,250.74,31.8852863]
[1737643401027,31.8852863,250.89,250.78,31.8852863]
[1737643401224,31.8852863,250.91,250.8,31.8852863]
[1737643401650,31.8852863,250.96,250.85,31.8852863]
[1737643401949,38.4926863,251.03,250.77,31.8852863]
[1737643401950,31.8852863,250.87,250.77,31.8852863]
[1737643402149,31.8852863,250.85,250.75,3.988]
[1737643402351,31.8852863,250.89,250.78,31.8852863]
[1737643402730,31.8852863,250.85,250.75,3.988]
[1737643403138,31.8852863,250.87,250.76,31.8852863]
[1737643403738,31.8852863,250.81,250.71,31.8852863]
[1737643404033,31.8852863,250.85,250.73,31.8852863]
[1737643404357,31.8852863,250.87,250.75,31.8852863]
[1737643404726,31.8852863,250.85,250.73,31.8852863]
[1737643404929,31.8852863,250.81,250.71,31.8852863]
[1737643405129,23.87,250.98,250.65,10.037]
[1737643405130,31.8852863,250.85,250.73,31.8852863]
[1737643405338,31.8852863,250.87,250.75,31.8852863]
[1737643405541,31.8852863,250.85,250.75,31.8852863]
[1737643405768,31.8852863,250.85,250.65,0.063]
[1737643405769,31.8852863,250.8,250.7,3.9887]
[1737643405937,31.8852863,250.78,250.67,31.8852863]
[1737643406257,31.8852863,250.8,250.69,31.8852863]
[1737643406656,31.8852863,250.9,250.67,31.8852863]
[1737643406657,31.8852863,250.78,250.67,31.8852863]
[1737643406833,31.8852863,250.76,250.66,3.9894]
[1737643407532,31.8852863,250.7,250.65,0.063]
[1737643407732,31.8852863,250.74,250.65,0.063]
[1737643407928,31.8852863,250.8,250.69,31.8852863]
[1737643408144,31.8852863,250.82,250.71,31.8852863]
[1737643408537,1.0,250.92,250.65,14.0265]
[1737643408538,31.8852863,250.8,250.69,31.8852863]
[1737643408748,31.8852863,250.78,250.66,31.8852863]
[1737643409060,31.8852863,250.82,250.72,31.8852863]
[1737643409260,31.8852863,250.84,250.73,3.9883]
[1737643409435,31.8852863,250.86,250.76,31.8852863]
[1737643409766,31.8852863,250.83,250.73,31.8852863]
[1737643410152,31.8852863,250.81,250.71,31.8852863]
[1737643410360,31.8852863,250.81,250.69,31.8852863]
[1737643410672,31.8852863,250.79,250.69,31.8852863]
[1737643410848,31.8852863,250.81,250.71,31.8852863]
[1737643411161,31.8852863,250.83,250.72,3.9885]
[1737643411385,31.8852863,250.87,250.75,31.8852863]
[1737643411574,31.8852863,250.92,250.82,31.8852863]
[1737643411736,31.8852863,250.94,250.82,31.8852863]
[1737643412157,31.8852863,250.99,250.88,31.8852863]
[1737643412460,31.8852863,250.97,250.86,31.8852863]
[1737643412958,31.8852863,250.92,250.81,31.8852863]
[1737643413160,31.8852863,250.88,250.8,0.063]
[1737643413343,31.8852863,250.9,250.8,0.063]
[1737643413550,31.8852863,250.92,250.8,0.063]
[1737643413770,31.8852863,250.9,250.8,0.063]
[1737643414057,31.8852863,250.95,250.83,31.8852863]
[1737643414449,0.03,251.0,250.81,31.8852863]
[1737643414450,31.8852863,250.93,250.81,31.8852863]
[1737643414649,31.8852863,250.93,250.83,31.8852863]
[1737643414849,31.8852863,250.95,250.83,31.8852863]
[1737643415249,31.8852863,250.95,250.84,3.9866]
[1737643415449,31.8852863,250.95,250.85,31.8852863]
[1737643415638,0.03,251.0,250.93,31.8852863]
[1737643415839,0.03,251.0,250.99,31.8852863]
[1737643416142,0.03,251.12,251.0,23.776884]
[1737643416483,0.03,251.12,250.99,23.776884]
[1737643416768,0.03,251.12,251.11,31.8852863]
[1737643417371,0.03,251.12,251.05,31.8852863]
[1737643417862,0.03,251.12,251.07,31.8852863]
[1737643418068,0.03,251.12,251.09,31.8852863]
[1737643418259,0.03,251.12,251.07,31.8852863]
[1737643418563,0.03,251.12,251.09,31.8852863]
[1737643419369,0.03,251.12,251.06,31.8852863]
[1737643419539,0.03,251.12,251.04,31.8852863]
[1737643419744,0.03,251.12,251.02,31.8852863]
[1737643419977,20.0,251.05,250.98,31.8852863]
[1737643420181,31.8852863,251.0,250.91,31.8852863]
[1737643420342,31.8852863,251.0,250.93,1.59402]
[1737643420546,31.8852863,251.0,250.89,31.8852863]
[1737643420848,31.8852863,251.04,250.93,31.8852863]
[1737643421353,31.8852863,251.04,250.94,3.985]
[1737643421664,20.0,250.95,250.87,31.8852863]
[1737643421840,51.8852863,250.95,250.85,31.8852863]
[1737643422036,31.8852863,250.95,250.85,31.8852863]
[1737643422258,31.8852863,250.91,250.8,31.9482863]
[1737643422558,31.8852863,250.91,250.8,35.9353863]
[1737643422758,31.8852863,250.98,250.88,31.8852863]
[1737643423061,31.8852863,251.03,250.92,31.8852863]
[1737643423241,31.8852863,251.03,250.94,31.8852863]
[1737643423674,31.8852863,251.03,250.81,23.776884]
[1737643423675,31.8852863,251.11,251.0,31.8852863]
[1737643423959,0.03,251.12,251.04,31.8852863]
[1737643424149,0.03,251.12,251.06,31.8852863]
[1737643424466,0.03,251.12,251.02,31.8852863]
[1737643424967,0.03,251.12,251.04,31.8852863]
[1737643425351,0.03,251.12,251.06,31.8852863]
[1737643425854,31.8852863,251.09,251.0,31.8852863]
[1737643426056,31.8852863,251.09,250.98,31.8852863]
[1737643426444,31.8852863,251.07,250.98,31.8852863]
[1737643426642,0.03,251.12,250.94,31.8852863]
[1737643426643,31.8852863,251.03,250.94,31.8852863]
[1737643427367,31.8852863,251.07,250.96,31.8852863]
[1737643427944,31.8852863,251.05,250.94,31.8852863]
[1737643428364,31.8852863,251.03,250.92,31.8852863]
[1737643428552,31.8852863,251.04,250.94,31.8852863]
[1737643428748,0.03,251.12,251.03,31.8852863]
[1737643428954,31.9152863,251.12,251.01,31.8852863]
[1737643429449,35.8974863,251.12,251.01,31.8852863]
[1737643429675,31.8852863,251.1,250.99,31.8852863]
[1737643430291,31.8852863,251.1,250.91,13.9491]
[1737643430461,31.8852863,251.08,250.97,31.8852863]
[1737643430661,31.8852863,251.06,250.97,31.8852863]
[1737643431055,31.8852863,251.06,250.95,31.8852863]
[1737643431665,31.8852863,251.04,250.94,3.9849]
[1737643431859,31.8852863,251.1,251.01,31.8852863]
[1737643432074,0.03,251.12,251.06,31.8852863]
[1737643432279,0.03,251.12,251.08,31.8852863]
[1737643433065,0.03,251.12,251.1,31.8852863]
[1737643433569,0.03,251.12,251.11,3.9823]
[1737643434258,0.03,251.16,251.12,24.776884]
[1737643434577,0.0001,251.17,251.16,23.776884]
[1737643434892,0.0001,251.17,251.15,31.8852863]
[1737643435062,0.0001,251.17,251.13,31.8852863]
[1737643435264,0.0001,251.17,251.11,31.8852863]
[1737643436579,0.0001,251.17,251.09,31.8852863]
[1737643436881,0.0001,251.17,251.11,31.8852863]
[1737643437083,0.0001,251.17,251.16,31.8852863]
[1737643437462,0.0001,251.17,251.16,35.8667863]
[1737643438270,0.0001,251.17,251.16,91.5289566]
[1737643438981,0.03,251.26,251.2,23.776884]
[1737643439284,0.03,251.26,251.23,31.8852863]
[1737643439466,0.03,251.26,251.21,31.8852863]
[1737643439879,0.03,251.26,251.19,31.8852863]
[1737643440190,0.03,251.26,251.17,35.8665863]
[1737643440480,0.03,251.26,251.21,31.8852863]
[1737643440695,0.03,251.26,251.23,31.8852863]
[1737643440982,0.03,251.26,251.25,31.8852863]
[1737643441591,0.03,251.38,251.26,23.776884]
[1737643441774,0.03,251.38,251.3,31.8852863]
[1737643441972,0.03,251.38,251.32,31.8852863]
[1737643442168,0.03,251.38,251.34,31.8852863]
[1737643442477,0.03,251.38,251.36,31.8852863]
[1737643442876,0.03,251.42,251.39,31.8852863]
[1737643443069,0.03,251.42,251.37,31.8852863]
[1737643443462,0.03,251.42,251.41,31.8852863]
[1737643443685,31.8852863,251.53,251.41,35.8627863]
[1737643443899,31.8852863,251.53,251.44,31.8852863]
[1737643444199,31.8852863,251.47,251.38,31.8852863]
[1737643444502,31.8852863,251.45,251.34,31.8852863]
[1737643444677,61.8852863,251.55,251.25,19.9004]
[1737643444678,31.8852863,251.47,251.36,31.8852863]
[1737643444996,31.8852863,251.47,251.38,31.8852863]
[1737643445208,31.8852863,251.49,251.4,31.8852863]
[1737643445573,31.8852863,251.49,251.41,3.9775]
[1737643446804,31.8852863,251.47,251.36,31.8852863]
[1737643447098,31.8852863,251.41,251.32,3.9789]
[1737643447809,31.8852863,251.61,251.44,23.776884]
[1737643448104,31.8852863,251.61,251.51,31.8852863]
[1737643448512,31.8852863,251.59,251.49,31.8852863]
[1737643448688,31.8852863,251.61,251.51,31.8852863]
[1737643448927,31.8852863,251.61,251.52,3.9758]
[1737643449106,31.8852863,251.63,251.53,31.8852863]
[1737643449606,31.8852863,251.67,251.57,31.8852863]
[1737643450175,31.8852863,251.65,251.57,31.8852863]
[1737643450486,31.8852863,251.65,251.55,31.8852863]
[1737643450675,31.8852863,251.63,251.55,31.8852863]
[1737643451376,31.8852863,251.67,251.58,31.8852863]
[1737643451908,0.03,251.75,251.54,31.8852863]
[1737643451909,31.8852863,251.63,251.54,31.8852863]
[1737643452080,31.8852863,251.65,251.56,31.8852863]
[1737643452405,31.8852863,251.67,251.58,31.8852863]
[1737643452576,31.8852863,251.71,251.62,31.8852863]
[1737643452777,31.8852863,251.69,251.61,3.9744]
[1737643453309,31.8852863,251.67,251.6,31.8852863]
[1737643453501,0.03,251.75,251.6,31.8852863]
[1737643453502,31.8852863,251.69,251.6,31.8852863]
[1737643454075,31.8852863,251.67,251.6,31.8852863]
[1737643454373,0.03,251.75,251.62,31.8852863]
[1737643454374,31.8852863,251.71,251.62,31.8852863]
[1737643455080,31.8852863,251.71,251.62,35.8593863]
[1737643455278,31.8852863,251.69,251.6,35.8596863]